[Event "Titled Tuesday Blitz August 08 Early 2023"]
[White "cycygogne"]
[Black "Llanos, Guillermo"]
[BlackFideId "100358"]
[WhiteElo "2165"]
[BlackElo "2393"]
[Result "0-1"]
[Round "3"]
[TimeControl "180+1"]
[Date "2023.08.08"]
[WhiteClock "0:00:14"]
[BlackClock "0:00:03"]
[Board "246"]

1. e3 {[%clk 0:02:55]}  d5 {[%clk 0:02:58]} 2. d4 {[%clk 0:02:52]}  c5 {[%clk 0:02:57]} 3. Nf3 {[%clk 0:02:52]}  Nc6 {[%clk 0:02:57]} 4. b3 {[%clk 0:02:52]}  cxd4 {[%clk 0:02:56]} 5. exd4 {[%clk 0:02:44]}  Bg4 {[%clk 0:02:55]} 6. Bb2 {[%clk 0:02:39]}  e6 {[%clk 0:02:55]} 7. h3 {[%clk 0:02:38]}  Bh5 {[%clk 0:02:54]} 8. g4 {[%clk 0:02:29]}  Bg6 {[%clk 0:02:53]} 9. Ne5 {[%clk 0:02:30]}  Nxe5 {[%clk 0:02:47]} 10. dxe5 {[%clk 0:02:29]}  a6 {[%clk 0:02:26]} 11. Bg2 {[%clk 0:02:26]}  h5 {[%clk 0:02:24]} 12. Nd2 {[%clk 0:02:10]}  hxg4 {[%clk 0:02:16]} 13. hxg4 {[%clk 0:02:10]}  Rxh1+ {[%clk 0:02:15]} 14. Bxh1 {[%clk 0:02:11]}  Qh4 {[%clk 0:02:15]} 15. Qf3 {[%clk 0:01:40]}  Bxc2 {[%clk 0:02:11]} 16. Rc1 {[%clk 0:01:40]}  Bg6 {[%clk 0:01:44]} 17. a3 {[%clk 0:01:13]}  Nh6 {[%clk 0:01:39]} 18. Rc7 {[%clk 0:01:06]}  Nxg4 {[%clk 0:01:32]} 19. Bg2 {[%clk 0:00:53]}  Bf5 {[%clk 0:01:02]} 20. Nf1 {[%clk 0:00:42]}  Qd8 {[%clk 0:00:54]} 21. Qc3 {[%clk 0:00:39]}  Be7 {[%clk 0:00:45]} 22. Ng3 {[%clk 0:00:37]}  Bg6 {[%clk 0:00:32]} 23. Bh3 {[%clk 0:00:32]}  Nxe5 {[%clk 0:00:19]} 24. Qxe5 {[%clk 0:00:31]}  Bf6 {[%clk 0:00:19]} 25. Qf4 {[%clk 0:00:22]}  Bxb2 {[%clk 0:00:19]} 26. Bxe6 {[%clk 0:00:16]}  Bf6 {[%clk 0:00:17]} 27. Bh3 {[%clk 0:00:13]}  Kf8 {[%clk 0:00:17]} 28. Nf5 {[%clk 0:00:12]}  Qe8+ {[%clk 0:00:16]} 29. Kf1 {[%clk 0:00:12]}  Qe4 {[%clk 0:00:15]} 30. Qxe4 {[%clk 0:00:08]}  dxe4 {[%clk 0:00:15]} 31. Nd6 {[%clk 0:00:08]}  Kg8 {[%clk 0:00:15]} 32. Bg2 {[%clk 0:00:07]}  Rd8 {[%clk 0:00:14]} 33. Nxe4 {[%clk 0:00:06]}  Rd1+ {[%clk 0:00:14]} 34. Ke2 {[%clk 0:00:06]}  Rg1 {[%clk 0:00:14]} 35. Bf3 {[%clk 0:00:05]}  Ra1 {[%clk 0:00:14]} 36. Rxb7 {[%clk 0:00:05]}  Rxa3 {[%clk 0:00:14]} 37. Rb8+ {[%clk 0:00:05]}  Kh7 {[%clk 0:00:13]} 38. Nxf6+ {[%clk 0:00:06]}  gxf6 {[%clk 0:00:13]} 39. Rb6 {[%clk 0:00:06]}  Kg7 {[%clk 0:00:12]} 40. Bb7 {[%clk 0:00:05]}  a5 {[%clk 0:00:12]} 41. Rb5 {[%clk 0:00:04]}  Bb1 {[%clk 0:00:09]} 42. Bd5 {[%clk 0:00:04]}  Bc2 {[%clk 0:00:07]} 43. Rb7 {[%clk 0:00:04]}  Bg6 {[%clk 0:00:07]} 44. Kf3 {[%clk 0:00:04]}  a4 {[%clk 0:00:06]} 45. Kf4 {[%clk 0:00:04]}  axb3 {[%clk 0:00:06]} 46. Bxb3 {[%clk 0:00:03]}  Ra5 {[%clk 0:00:06]} 47. Bc4 {[%clk 0:00:03]}  Re5 {[%clk 0:00:06]} 48. Kg3 {[%clk 0:00:04]}  Rc5 {[%clk 0:00:05]} 49. Be2 {[%clk 0:00:03]}  Rc3+ {[%clk 0:00:06]} 50. Bf3 {[%clk 0:00:04]}  Be4 {[%clk 0:00:04]} 51. Kf4 {[%clk 0:00:04]}  Bxf3 {[%clk 0:00:03]} 52. Rd7 {[%clk 0:00:04]}  Bc6 {[%clk 0:00:03]} 53. Re7 {[%clk 0:00:05]}  Rc5 {[%clk 0:00:02]} 54. Rc7 {[%clk 0:00:05]}  Rc4+ {[%clk 0:00:02]} 55. Ke3 {[%clk 0:00:05]}  Bb5 {[%clk 0:00:02]} 56. Rxc4 {[%clk 0:00:03]}  Bxc4 {[%clk 0:00:02]} 57. Kd4 {[%clk 0:00:04]}  Be6 {[%clk 0:00:02]} 58. Ke3 {[%clk 0:00:05]}  Kg6 {[%clk 0:00:02]} 59. Kf4 {[%clk 0:00:06]}  f5 {[%clk 0:00:02]} 60. Kg3 {[%clk 0:00:06]}  Kg5 {[%clk 0:00:02]} 61. Kg2 {[%clk 0:00:06]}  f4 {[%clk 0:00:02]} 62. Kf1 {[%clk 0:00:07]}  Kg4 {[%clk 0:00:02]} 63. Kg1 {[%clk 0:00:08]}  Kf3 {[%clk 0:00:01]} 64. Kf1 {[%clk 0:00:08]}  Bc4+ {[%clk 0:00:01]} 65. Kg1 {[%clk 0:00:09]}  Be2 {[%clk 0:00:01]} 66. Kh2 {[%clk 0:00:09]}  Kxf2 {[%clk 0:00:01]} 67. Kh3 {[%clk 0:00:10]}  f3 {[%clk 0:00:01]} 68. Kh4 {[%clk 0:00:11]}  Ke3 {[%clk 0:00:01]} 69. Kg5 {[%clk 0:00:12]}  f2 {[%clk 0:00:01]} 70. Kf6 {[%clk 0:00:13]}  f1=Q+ {[%clk 0:00:02]} 71. Ke7 {[%clk 0:00:12]}  Bd3 {[%clk 0:00:02]} 72. Kd7 {[%clk 0:00:13]}  f6 {[%clk 0:00:02]} 73. Ke7 {[%clk 0:00:14]}  f5 {[%clk 0:00:02]} 74. Kd7 {[%clk 0:00:15]}  Qf4 {[%clk 0:00:02]} 75. Ke7 {[%clk 0:00:16]}  Kd4 {[%clk 0:00:02]} 76. Kd7 {[%clk 0:00:17]}  Kd5 {[%clk 0:00:03]} 77. Ke7 {[%clk 0:00:14]}  Qd6+ {[%clk 0:00:03]} 0-1


[Site "https://www.chess.com"]

[Event "Titled Tuesday Blitz August 08 Early 2023"]
[White "Kuchava, Ana"]
[Black "Melikhov, Evgeny V."]
[WhiteFideId "13605348"]
[BlackFideId "4122046"]
[WhiteElo "2148"]
[BlackElo "2367"]
[Result "1-0"]
[Round "3"]
[TimeControl "180+1"]
[Date "2023.08.08"]
[WhiteClock "0:00:20"]
[BlackClock "0:00:18"]
[Board "250"]

1. d4 {[%clk 0:03:00]}  Nf6 {[%clk 0:02:59]} 2. Nf3 {[%clk 0:03:00]}  d5 {[%clk 0:02:59]} 3. c4 {[%clk 0:02:59]}  e6 {[%clk 0:02:59]} 4. Nc3 {[%clk 0:02:57]}  Bb4 {[%clk 0:02:59]} 5. Qa4+ {[%clk 0:02:56]}  Nc6 {[%clk 0:02:59]} 6. e3 {[%clk 0:02:54]}  O-O {[%clk 0:02:55]} 7. Bd3 {[%clk 0:02:51]}  dxc4 {[%clk 0:02:55]} 8. Bxc4 {[%clk 0:02:50]}  Bd6 {[%clk 0:02:55]} 9. O-O {[%clk 0:02:45]}  e5 {[%clk 0:02:54]} 10. d5 {[%clk 0:02:41]}  Ne7 {[%clk 0:02:53]} 11. e4 {[%clk 0:02:40]}  a6 {[%clk 0:02:53]} 12. Qc2 {[%clk 0:02:38]}  h6 {[%clk 0:02:51]} 13. b3 {[%clk 0:02:31]}  Ng6 {[%clk 0:02:51]} 14. Bb2 {[%clk 0:02:30]}  Nh7 {[%clk 0:02:41]} 15. Ne2 {[%clk 0:02:21]}  f5 {[%clk 0:02:39]} 16. exf5 {[%clk 0:02:13]}  Bxf5 {[%clk 0:02:38]} 17. Bd3 {[%clk 0:02:13]}  Bxd3 {[%clk 0:02:33]} 18. Qxd3 {[%clk 0:02:14]}  Nf4 {[%clk 0:02:32]} 19. Nxf4 {[%clk 0:02:11]}  exf4 {[%clk 0:02:26]} 20. Rfe1 {[%clk 0:02:04]}  Ng5 {[%clk 0:02:25]} 21. Nxg5 {[%clk 0:01:55]}  Qxg5 {[%clk 0:02:24]} 22. f3 {[%clk 0:01:48]}  Rae8 {[%clk 0:02:21]} 23. Re4 {[%clk 0:01:37]}  Rxe4 {[%clk 0:02:18]} 24. Qxe4 {[%clk 0:01:36]}  Bc5+ {[%clk 0:02:05]} 25. Bd4 {[%clk 0:01:11]}  Qf6 {[%clk 0:01:56]} 26. Rd1 {[%clk 0:01:06]}  Bxd4+ {[%clk 0:01:56]} 27. Rxd4 {[%clk 0:01:02]}  g5 {[%clk 0:01:51]} 28. d6 {[%clk 0:00:42]}  cxd6 {[%clk 0:01:47]} 29. Qd5+ {[%clk 0:00:41]}  Kg7 {[%clk 0:01:46]} 30. Qxd6 {[%clk 0:00:41]}  Qxd6 {[%clk 0:01:45]} 31. Rxd6 {[%clk 0:00:42]}  Rf7 {[%clk 0:01:41]} 32. Kf2 {[%clk 0:00:41]}  Re7 {[%clk 0:01:41]} 33. a4 {[%clk 0:00:39]}  h5 {[%clk 0:01:39]} 34. h3 {[%clk 0:00:37]}  Kf7 {[%clk 0:01:38]} 35. Rh6 {[%clk 0:00:34]}  h4 {[%clk 0:01:36]} 36. Rb6 {[%clk 0:00:33]}  Kg7 {[%clk 0:01:30]} 37. a5 {[%clk 0:00:32]}  Kf7 {[%clk 0:01:30]} 38. b4 {[%clk 0:00:32]}  Kg7 {[%clk 0:01:19]} 39. Rd6 {[%clk 0:00:29]}  Rc7 {[%clk 0:01:10]} 40. Rb6 {[%clk 0:00:29]}  Re7 {[%clk 0:01:00]} 41. Rd6 {[%clk 0:00:28]}  Kf7 {[%clk 0:00:59]} 42. Rb6 {[%clk 0:00:28]}  Ke8 {[%clk 0:00:52]} 43. Rg6 {[%clk 0:00:23]}  Re5 {[%clk 0:00:52]} 44. Rb6 {[%clk 0:00:23]}  Rb5 {[%clk 0:00:34]} 45. Rxb5 {[%clk 0:00:23]}  axb5 {[%clk 0:00:34]} 46. Ke2 {[%clk 0:00:23]}  Kd7 {[%clk 0:00:30]} 47. Kd3 {[%clk 0:00:23]}  Kc6 {[%clk 0:00:29]} 48. Ke4 {[%clk 0:00:23]}  Kd6 {[%clk 0:00:26]} 49. Kd4 {[%clk 0:00:21]}  Ke6 {[%clk 0:00:22]} 50. Kc5 {[%clk 0:00:20]}  Kd7 {[%clk 0:00:23]} 51. Kxb5 {[%clk 0:00:20]}  Kc7 {[%clk 0:00:23]} 52. Kc5 {[%clk 0:00:20]}  Kd7 {[%clk 0:00:23]} 53. Kb6 {[%clk 0:00:19]}  Kc8 {[%clk 0:00:23]} 54. a6 {[%clk 0:00:19]}  bxa6 {[%clk 0:00:21]} 55. Kxa6 {[%clk 0:00:20]}  Kb8 {[%clk 0:00:21]} 56. Kb6 {[%clk 0:00:20]}  Kc8 {[%clk 0:00:18]} 57. Ka7 {[%clk 0:00:20]} 1-0


[Site "https://www.chess.com"]

[Event "Titled Tuesday Blitz August 08 Early 2023"]
[White "Der_Balak_3Halak"]
[Black "Sailer, Mike"]
[BlackFideId "2012901"]
[WhiteElo "2363"]
[BlackElo "2146"]
[Result "1-0"]
[Round "3"]
[TimeControl "180+1"]
[Date "2023.08.08"]
[WhiteClock "0:00:47"]
[BlackClock "0:00:11"]
[Board "252"]

1. e4 {[%clk 0:03:00]}  d5 {[%clk 0:03:00]} 2. exd5 {[%clk 0:03:00]}  Qxd5 {[%clk 0:02:59]} 3. Nf3 {[%clk 0:03:00]}  Bg4 {[%clk 0:02:58]} 4. Be2 {[%clk 0:03:00]}  Nc6 {[%clk 0:02:52]} 5. O-O {[%clk 0:02:56]}  O-O-O {[%clk 0:02:52]} 6. c4 {[%clk 0:02:50]}  Qf5 {[%clk 0:02:50]} 7. h3 {[%clk 0:02:44]}  h5 {[%clk 0:02:28]} 8. hxg4 {[%clk 0:02:26]}  hxg4 {[%clk 0:02:27]} 9. Nh2 {[%clk 0:02:23]}  Nf6 {[%clk 0:02:07]} 10. Bxg4 {[%clk 0:02:21]}  Nxg4 {[%clk 0:01:58]} 11. Qxg4 {[%clk 0:01:50]}  Qxg4 {[%clk 0:01:56]} 12. Nxg4 {[%clk 0:01:51]}  Nd4 {[%clk 0:01:54]} 13. Nc3 {[%clk 0:01:52]}  Rd6 {[%clk 0:01:18]} 14. d3 {[%clk 0:01:43]}  Rg6 {[%clk 0:01:11]} 15. Ne5 {[%clk 0:01:34]}  Re6 {[%clk 0:01:00]} 16. Nxf7 {[%clk 0:01:27]}  Nf3+ {[%clk 0:00:40]} 17. gxf3 {[%clk 0:01:27]}  Rg6+ {[%clk 0:00:40]} 18. Ng5 {[%clk 0:01:27]}  Rgh6 {[%clk 0:00:31]} 19. Bf4 {[%clk 0:01:16]}  e5 {[%clk 0:00:30]} 20. Nf7 {[%clk 0:00:59]}  Rg6+ {[%clk 0:00:26]} 21. Bg3 {[%clk 0:00:57]}  Rh5 {[%clk 0:00:21]} 22. Kg2 {[%clk 0:00:50]}  Rf6 {[%clk 0:00:18]} 23. Nxe5 {[%clk 0:00:48]}  Bd6 {[%clk 0:00:18]} 24. Rh1 {[%clk 0:00:47]}  Rxh1 {[%clk 0:00:13]} 25. Rxh1 {[%clk 0:00:48]}  Bxe5 {[%clk 0:00:11]} 26. Bxe5 {[%clk 0:00:47]} 1-0


[Site "https://www.chess.com"]

[Event "Titled Tuesday Blitz August 08 Early 2023"]
[White "Ai, Evan"]
[Black "Feliz Dotel, Dewar Bienvenido"]
[WhiteFideId "2094770"]
[BlackFideId "6402801"]
[WhiteElo "2362"]
[BlackElo "2142"]
[Result "0-1"]
[Round "3"]
[TimeControl "180+1"]
[Date "2023.08.08"]
[WhiteClock "0:00:07"]
[BlackClock "0:00:35"]
[Board "253"]

1. d4 {[%clk 0:03:00]}  d5 {[%clk 0:02:59]} 2. c4 {[%clk 0:03:00]}  e6 {[%clk 0:02:59]} 3. Nc3 {[%clk 0:02:59]}  c5 {[%clk 0:02:58]} 4. cxd5 {[%clk 0:02:54]}  exd5 {[%clk 0:02:58]} 5. Nf3 {[%clk 0:02:53]}  Nc6 {[%clk 0:02:57]} 6. dxc5 {[%clk 0:02:52]}  Nf6 {[%clk 0:02:46]} 7. Bg5 {[%clk 0:02:48]}  Bxc5 {[%clk 0:02:37]} 8. e3 {[%clk 0:02:42]}  O-O {[%clk 0:02:30]} 9. Bd3 {[%clk 0:02:37]}  d4 {[%clk 0:02:29]} 10. Ne4 {[%clk 0:02:19]}  Qa5+ {[%clk 0:02:17]} 11. Nfd2 {[%clk 0:01:57]}  Nxe4 {[%clk 0:02:11]} 12. Bxe4 {[%clk 0:01:58]}  dxe3 {[%clk 0:01:59]} 13. fxe3 {[%clk 0:01:49]}  Bb4 {[%clk 0:01:49]} 14. a3 {[%clk 0:00:56]}  Bxd2+ {[%clk 0:01:46]} 15. Qxd2 {[%clk 0:00:57]}  Qxg5 {[%clk 0:01:46]} 16. O-O {[%clk 0:00:34]}  Be6 {[%clk 0:01:38]} 17. Rf4 {[%clk 0:00:33]}  Rfd8 {[%clk 0:01:29]} 18. Qf2 {[%clk 0:00:31]}  Ne5 {[%clk 0:01:25]} 19. Rf1 {[%clk 0:00:19]}  h6 {[%clk 0:00:45]} 20. Bxb7 {[%clk 0:00:11]}  Nd3 {[%clk 0:00:40]} 21. Qf3 {[%clk 0:00:10]}  Nxf4 {[%clk 0:00:40]} 22. exf4 {[%clk 0:00:11]}  Qc5+ {[%clk 0:00:39]} 23. Kh1 {[%clk 0:00:10]}  Rab8 {[%clk 0:00:39]} 24. f5 {[%clk 0:00:07]}  Bd5 {[%clk 0:00:35]} 0-1


[Site "https://www.chess.com"]

[Event "Titled Tuesday Blitz August 08 Early 2023"]
[White "Putri, Regita Desyari"]
[Black "Gatterer, Florian"]
[WhiteFideId "7109083"]
[BlackFideId "811688"]
[WhiteElo "2142"]
[BlackElo "2359"]
[Result "1-0"]
[Round "3"]
[TimeControl "180+1"]
[Date "2023.08.08"]
[WhiteClock "0:00:03"]
[BlackClock "0:00:21"]
[Board "254"]

1. d4 {[%clk 0:03:00]}  Nf6 {[%clk 0:02:59]} 2. c4 {[%clk 0:02:59]}  g6 {[%clk 0:02:59]} 3. Nf3 {[%clk 0:02:59]}  Bg7 {[%clk 0:02:58]} 4. g3 {[%clk 0:02:59]}  c6 {[%clk 0:02:58]} 5. Bg2 {[%clk 0:02:58]}  d5 {[%clk 0:02:58]} 6. cxd5 {[%clk 0:02:58]}  cxd5 {[%clk 0:02:57]} 7. O-O {[%clk 0:02:59]}  O-O {[%clk 0:02:57]} 8. Nc3 {[%clk 0:03:00]}  Ne4 {[%clk 0:02:57]} 9. Qb3 {[%clk 0:02:40]}  Nxc3 {[%clk 0:02:55]} 10. bxc3 {[%clk 0:02:41]}  Nc6 {[%clk 0:02:55]} 11. Bf4 {[%clk 0:02:39]}  Na5 {[%clk 0:02:48]} 12. Qb4 {[%clk 0:02:27]}  Nc6 {[%clk 0:02:45]} 13. Qb2 {[%clk 0:02:24]}  b6 {[%clk 0:02:41]} 14. Rfd1 {[%clk 0:02:22]}  Ba6 {[%clk 0:02:34]} 15. Ne5 {[%clk 0:02:22]}  Nxe5 {[%clk 0:02:31]} 16. dxe5 {[%clk 0:02:23]}  e6 {[%clk 0:02:31]} 17. e4 {[%clk 0:02:22]}  g5 {[%clk 0:02:25]} 18. Be3 {[%clk 0:02:18]}  Bxe5 {[%clk 0:02:24]} 19. exd5 {[%clk 0:02:19]}  Qf6 {[%clk 0:02:24]} 20. Bd4 {[%clk 0:02:15]}  Bxd4 {[%clk 0:02:13]} 21. Rxd4 {[%clk 0:02:16]}  Bb7 {[%clk 0:02:13]} 22. Qd2 {[%clk 0:02:02]}  Rad8 {[%clk 0:01:51]} 23. c4 {[%clk 0:01:53]}  exd5 {[%clk 0:01:47]} 24. cxd5 {[%clk 0:01:54]}  Rd6 {[%clk 0:01:41]} 25. Rd1 {[%clk 0:01:53]}  Kh8 {[%clk 0:01:35]} 26. Rg4 {[%clk 0:01:49]}  h6 {[%clk 0:01:34]} 27. h4 {[%clk 0:01:47]}  Rg8 {[%clk 0:01:29]} 28. hxg5 {[%clk 0:01:46]}  hxg5 {[%clk 0:01:29]} 29. Rc4 {[%clk 0:01:37]}  Rc8 {[%clk 0:01:21]} 30. Rxc8+ {[%clk 0:00:42]}  Bxc8 {[%clk 0:01:20]} 31. Qc2 {[%clk 0:00:42]}  Bg4 {[%clk 0:01:10]} 32. Re1 {[%clk 0:00:40]}  Kg7 {[%clk 0:01:02]} 33. Qc7 {[%clk 0:00:34]}  Rd7 {[%clk 0:01:02]} 34. Qc4 {[%clk 0:00:24]}  Bf5 {[%clk 0:00:56]} 35. a4 {[%clk 0:00:14]}  Rd6 {[%clk 0:00:54]} 36. Qc7 {[%clk 0:00:13]}  Rd7 {[%clk 0:00:52]} 37. Qb8 {[%clk 0:00:12]}  Qd6 {[%clk 0:00:52]} 38. Qe8 {[%clk 0:00:10]}  Rd8 {[%clk 0:00:48]} 39. Qe3 {[%clk 0:00:10]}  Qf6 {[%clk 0:00:46]} 40. Rc1 {[%clk 0:00:10]}  Kg6 {[%clk 0:00:38]} 41. a5 {[%clk 0:00:06]}  bxa5 {[%clk 0:00:37]} 42. Qxa7 {[%clk 0:00:07]}  Qb2 {[%clk 0:00:34]} 43. Rc6+ {[%clk 0:00:05]}  Kg7 {[%clk 0:00:31]} 44. Qe3 {[%clk 0:00:02]}  f6 {[%clk 0:00:23]} 45. Qe7+ {[%clk 0:00:02]}  Kg6 {[%clk 0:00:23]} 46. Qxd8 {[%clk 0:00:02]}  Qb1+ {[%clk 0:00:23]} 47. Kh2 {[%clk 0:00:01]}  Qb2 {[%clk 0:00:24]} 48. Qg8+ {[%clk 0:00:02]}  Kh5 {[%clk 0:00:24]} 49. Qh8+ {[%clk 0:00:03]}  Kg4 {[%clk 0:00:24]} 50. Rxf6 {[%clk 0:00:03]}  Qxf6 {[%clk 0:00:21]} 51. Qh3# {[%clk 0:00:03]} 1-0


[Site "https://www.chess.com"]

[Event "Titled Tuesday Blitz August 08 Early 2023"]
[White "Pumpkin_in_moonlight"]
[Black "Bures, Vit"]
[BlackFideId "309052"]
[WhiteElo "2097"]
[BlackElo "2347"]
[Result "1/2-1/2"]
[Round "3"]
[TimeControl "180+1"]
[Date "2023.08.08"]
[WhiteClock "0:00:13"]
[BlackClock "0:00:40"]
[Board "256"]

1. e4 {[%clk 0:03:00]}  e5 {[%clk 0:02:59]} 2. Nf3 {[%clk 0:03:00]}  Nc6 {[%clk 0:03:00]} 3. Bc4 {[%clk 0:03:00]}  Bc5 {[%clk 0:03:00]} 4. d3 {[%clk 0:02:54]}  Nf6 {[%clk 0:02:59]} 5. Nc3 {[%clk 0:02:45]}  h6 {[%clk 0:02:59]} 6. a3 {[%clk 0:02:39]}  a6 {[%clk 0:02:56]} 7. Be3 {[%clk 0:02:23]}  Bxe3 {[%clk 0:02:55]} 8. fxe3 {[%clk 0:02:23]}  O-O {[%clk 0:02:55]} 9. Qd2 {[%clk 0:02:17]}  d6 {[%clk 0:02:52]} 10. Ne2 {[%clk 0:02:16]}  Be6 {[%clk 0:02:34]} 11. Bxe6 {[%clk 0:02:13]}  fxe6 {[%clk 0:02:35]} 12. O-O {[%clk 0:02:05]}  Ne7 {[%clk 0:02:30]} 13. c4 {[%clk 0:02:02]}  Ng6 {[%clk 0:02:27]} 14. b4 {[%clk 0:02:00]}  c6 {[%clk 0:02:26]} 15. Nc3 {[%clk 0:01:48]}  d5 {[%clk 0:02:23]} 16. exd5 {[%clk 0:01:40]}  exd5 {[%clk 0:02:24]} 17. cxd5 {[%clk 0:01:32]}  cxd5 {[%clk 0:02:25]} 18. d4 {[%clk 0:01:29]}  Ne4 {[%clk 0:02:12]} 19. Nxe4 {[%clk 0:01:24]}  dxe4 {[%clk 0:02:13]} 20. Qa2+ {[%clk 0:01:21]}  Kh8 {[%clk 0:02:00]} 21. Nxe5 {[%clk 0:01:19]}  Nxe5 {[%clk 0:01:58]} 22. dxe5 {[%clk 0:01:17]}  Qd3 {[%clk 0:01:49]} 23. Rxf8+ {[%clk 0:00:58]}  Rxf8 {[%clk 0:01:49]} 24. Re1 {[%clk 0:00:56]}  Qc3 {[%clk 0:01:47]} 25. Qa1 {[%clk 0:00:50]}  Rc8 {[%clk 0:01:40]} 26. Qxc3 {[%clk 0:00:37]}  Rxc3 {[%clk 0:01:41]} 27. Rd1 {[%clk 0:00:35]}  Kg8 {[%clk 0:01:28]} 28. Rd7 {[%clk 0:00:27]}  b5 {[%clk 0:01:24]} 29. e6 {[%clk 0:00:25]}  Kf8 {[%clk 0:01:01]} 30. Rf7+ {[%clk 0:00:24]}  Kg8 {[%clk 0:01:01]} 31. Ra7 {[%clk 0:00:24]}  Kf8 {[%clk 0:00:55]} 32. Rxa6 {[%clk 0:00:24]}  Rxe3 {[%clk 0:00:56]} 33. Kf2 {[%clk 0:00:24]}  Rc3 {[%clk 0:00:53]} 34. a4 {[%clk 0:00:19]}  bxa4 {[%clk 0:00:51]} 35. b5 {[%clk 0:00:18]}  Rb3 {[%clk 0:00:46]} 36. b6 {[%clk 0:00:18]}  Ke7 {[%clk 0:00:43]} 37. Rxa4 {[%clk 0:00:16]}  e3+ {[%clk 0:00:42]} 38. Ke2 {[%clk 0:00:15]}  Kxe6 {[%clk 0:00:41]} 39. Re4+ {[%clk 0:00:12]}  Kf6 {[%clk 0:00:40]} 40. Rxe3 {[%clk 0:00:12]}  Rxb6 {[%clk 0:00:41]} 41. Rf3+ {[%clk 0:00:11]}  Kg6 {[%clk 0:00:41]} 42. Rg3+ {[%clk 0:00:12]}  Kh7 {[%clk 0:00:41]} 43. Rf3 {[%clk 0:00:12]}  h5 {[%clk 0:00:41]} 44. h4 {[%clk 0:00:12]}  Rb4 {[%clk 0:00:40]} 45. g3 {[%clk 0:00:12]}  Kg6 {[%clk 0:00:40]} 46. Kf2 {[%clk 0:00:12]}  Kh6 {[%clk 0:00:40]} 47. Rf5 {[%clk 0:00:12]}  g6 {[%clk 0:00:40]} 48. Ra5 {[%clk 0:00:12]}  Rb2+ {[%clk 0:00:39]} 49. Kf3 {[%clk 0:00:12]}  Rb3+ {[%clk 0:00:39]} 50. Kf2 {[%clk 0:00:12]}  Rb2+ {[%clk 0:00:40]} 51. Kf3 {[%clk 0:00:13]}  Rb3+ {[%clk 0:00:39]} 52. Kf2 {[%clk 0:00:13]}  Rb2+ {[%clk 0:00:40]} 1/2-1/2


[Site "https://www.chess.com"]

[Event "Titled Tuesday Blitz August 08 Early 2023"]
[White "Nithyalakshmi, Sivanesan"]
[Black "Lakshmi C"]
[WhiteFideId "5706955"]
[BlackFideId "25035347"]
[WhiteElo "2344"]
[BlackElo "2085"]
[Result "1-0"]
[Round "3"]
[TimeControl "180+1"]
[Date "2023.08.08"]
[WhiteClock "0:00:11"]
[BlackClock "0:00:08"]
[Board "258"]

1. e4 {[%clk 0:03:00]}  c5 {[%clk 0:02:49]} 2. Nc3 {[%clk 0:02:59]}  Nc6 {[%clk 0:02:46]} 3. f4 {[%clk 0:02:57]}  g6 {[%clk 0:02:45]} 4. Nf3 {[%clk 0:02:57]}  Bg7 {[%clk 0:02:46]} 5. Bb5 {[%clk 0:02:55]}  e6 {[%clk 0:02:46]} 6. Bxc6 {[%clk 0:02:53]}  bxc6 {[%clk 0:02:46]} 7. d3 {[%clk 0:02:54]}  d5 {[%clk 0:02:45]} 8. O-O {[%clk 0:02:53]}  Ne7 {[%clk 0:02:39]} 9. Qe1 {[%clk 0:02:52]}  Qb6 {[%clk 0:02:23]} 10. Kh1 {[%clk 0:02:50]}  Qa6 {[%clk 0:02:20]} 11. Ng5 {[%clk 0:02:17]}  O-O {[%clk 0:02:08]} 12. Nxh7 {[%clk 0:02:08]}  Kxh7 {[%clk 0:02:05]} 13. Qh4+ {[%clk 0:02:08]}  Kg8 {[%clk 0:02:05]} 14. Qxe7 {[%clk 0:02:08]}  c4 {[%clk 0:02:00]} 15. Rf3 {[%clk 0:02:01]}  cxd3 {[%clk 0:01:56]} 16. cxd3 {[%clk 0:02:00]}  d4 {[%clk 0:00:50]} 17. Ne2 {[%clk 0:01:38]}  Qa4 {[%clk 0:00:47]} 18. b3 {[%clk 0:01:35]}  Qa5 {[%clk 0:00:47]} 19. Rh3 {[%clk 0:00:54]}  Qe1+ {[%clk 0:00:26]} 20. Ng1 {[%clk 0:00:54]}  Qc3 {[%clk 0:00:23]} 21. f5 {[%clk 0:00:38]}  exf5 {[%clk 0:00:18]} 22. Bh6 {[%clk 0:00:20]}  fxe4 {[%clk 0:00:16]} 23. Bxg7 {[%clk 0:00:18]}  Kxg7 {[%clk 0:00:17]} 24. Qe5+ {[%clk 0:00:15]}  f6 {[%clk 0:00:17]} 25. Qc7+ {[%clk 0:00:13]}  Rf7 {[%clk 0:00:17]} 26. Rh7+ {[%clk 0:00:13]}  Kxh7 {[%clk 0:00:16]} 27. Qxf7+ {[%clk 0:00:13]}  Kh6 {[%clk 0:00:17]} 28. Rf1 {[%clk 0:00:13]}  Bg4 {[%clk 0:00:16]} 29. Qxf6 {[%clk 0:00:12]}  Qxd3 {[%clk 0:00:13]} 30. Qf4+ {[%clk 0:00:12]}  g5 {[%clk 0:00:12]} 31. Qd6+ {[%clk 0:00:11]}  Kh5 {[%clk 0:00:12]} 32. Rf6 {[%clk 0:00:11]}  Bd1 {[%clk 0:00:08]} 33. Rh6+ {[%clk 0:00:11]}  Kg4 {[%clk 0:00:09]} 34. h3+ {[%clk 0:00:11]}  Kf5 {[%clk 0:00:08]} 35. Qf6# {[%clk 0:00:11]} 1-0


[Site "https://www.chess.com"]

[Event "Titled Tuesday Blitz August 08 Early 2023"]
[White "Kriti Mayur Patel"]
[Black "Topalov, Aleksandar"]
[WhiteFideId "35061780"]
[BlackFideId "925659"]
[WhiteElo "2071"]
[BlackElo "2335"]
[Result "0-1"]
[Round "3"]
[TimeControl "180+1"]
[Date "2023.08.08"]
[WhiteClock "0:00:12"]
[BlackClock "0:00:55"]
[Board "259"]

1. e4 {[%clk 0:03:00]}  e6 {[%clk 0:02:59]} 2. d4 {[%clk 0:03:00]}  d5 {[%clk 0:02:59]} 3. Nc3 {[%clk 0:03:00]}  Bb4 {[%clk 0:02:59]} 4. exd5 {[%clk 0:03:00]}  exd5 {[%clk 0:02:58]} 5. Bd3 {[%clk 0:03:01]}  Ne7 {[%clk 0:02:58]} 6. a3 {[%clk 0:03:01]}  Bxc3+ {[%clk 0:02:57]} 7. bxc3 {[%clk 0:03:01]}  Bf5 {[%clk 0:02:54]} 8. Nf3 {[%clk 0:02:57]}  O-O {[%clk 0:02:53]} 9. O-O {[%clk 0:02:57]}  Nbc6 {[%clk 0:02:54]} 10. Bg5 {[%clk 0:02:54]}  f6 {[%clk 0:02:51]} 11. Bf4 {[%clk 0:02:52]}  Qd7 {[%clk 0:02:49]} 12. Rb1 {[%clk 0:02:51]}  b6 {[%clk 0:02:49]} 13. Re1 {[%clk 0:02:46]}  Ng6 {[%clk 0:02:47]} 14. Bb5 {[%clk 0:02:39]}  Nxf4 {[%clk 0:02:42]} 15. Qd2 {[%clk 0:02:25]}  Ng6 {[%clk 0:02:40]} 16. c4 {[%clk 0:02:24]}  a6 {[%clk 0:02:37]} 17. Ba4 {[%clk 0:02:20]}  Be4 {[%clk 0:02:27]} 18. Qe2 {[%clk 0:01:50]}  b5 {[%clk 0:01:55]} 19. cxb5 {[%clk 0:01:44]}  Bxf3 {[%clk 0:01:55]} 20. Qxf3 {[%clk 0:01:19]}  Nxd4 {[%clk 0:01:54]} 21. Qd3 {[%clk 0:01:12]}  axb5 {[%clk 0:01:45]} 22. Qxd4 {[%clk 0:01:07]}  Rxa4 {[%clk 0:01:41]} 23. Qd3 {[%clk 0:01:04]}  c6 {[%clk 0:01:39]} 24. Rbd1 {[%clk 0:00:56]}  Qg4 {[%clk 0:01:29]} 25. Kh1 {[%clk 0:00:44]}  Nf4 {[%clk 0:01:15]} 26. Qf1 {[%clk 0:00:44]}  Rxa3 {[%clk 0:01:03]} 27. Re7 {[%clk 0:00:39]}  Rc3 {[%clk 0:00:57]} 28. Rde1 {[%clk 0:00:12]}  Rxc2 {[%clk 0:00:55]} 0-1


[Site "https://www.chess.com"]